{"text_format":"1","workbook":"xlsx","n_sheets":2,"sheets":["Faktura","Firmaopsætning"],"not_rendered":{"charts":0,"images":2,"macros":1,"external_links":0,"defined_names":25,"comments":0,"pivot_tables":0},"unopened":[],"bounds":{"document_bytes":16777216,"sheet_cells":100000,"rows_first":2000,"rows_last":500,"rows_between":2000,"halvings":0,"cell_chars":16384,"cell_head_chars":4096},"cells_cut":0,"cells_raw":0,"read":"whole","date_system":"1900"}

{"sheet":"Faktura","index":0,"n_rows":44,"n_cols":6,"rows_kept":44,"cut":false,"hidden":false,"merged":[[2,3,3,4],[43,1,43,4],[32,4,33,4],[5,3,5,4],[6,3,6,4],[7,3,7,4],[5,1,5,2],[6,1,6,2],[7,1,7,2],[8,1,8,2],[32,2,33,3]]}
[]
[null,"FAKTURA"]
[null,"Faktura dato",{"$f":"TODAY()","v":"2015-10-20"},{"$f":"Fakturatotal","v":743.75},null," "]
[null,"Betalingsfrist er dagsdato + 8 dage",null,null,null," "]
[]
[null,"kundenavn",null,{"$f":"Firmaopsætning!C4","v":0}]
[null,"kunde adresse",null,{"$f":"Firmaopsætning!C5","v":0}]
[null,"kunde adresse",null,{"$f":"Firmaopsætning!C6","v":0}]
[null,"kunde tlf.",null,null,0]
[null,"Rabatsats",4,null,{"$f":"Firmaopsætning_Adresselinje4","v":0}]
[]
[]
[]
[null,"ANTAL","DETALJER","ENHEDSPRIS","LINJETOTAL"]
[null,1,"Telefonisk konsultation",{"$f":"IF(Fakturadetaljer[[#This Row],[DETALJER]]=\"\",\"\",VLOOKUP(C15,konsultationspris,2,FALSE))","v":150},{"$f":"IFERROR(Fakturadetaljer[[#This Row],[ENHEDSPRIS]]*Fakturadetaljer[[#This Row],[ANTAL]],\"\")","v":150}]
[null,1,"Personlig konsultation ude",{"$f":"IF(Fakturadetaljer[[#This Row],[DETALJER]]=\"\",\"\",VLOOKUP(C16,konsultationspris,2,FALSE))","v":300},{"$f":"IFERROR(Fakturadetaljer[[#This Row],[ENHEDSPRIS]]*Fakturadetaljer[[#This Row],[ANTAL]],\"\")","v":300}]
[null,1,"Personlig konsultation ",{"$f":"IF(Fakturadetaljer[[#This Row],[DETALJER]]=\"\",\"\",VLOOKUP(C17,konsultationspris,2,FALSE))","v":250},{"$f":"IFERROR(Fakturadetaljer[[#This Row],[ENHEDSPRIS]]*Fakturadetaljer[[#This Row],[ANTAL]],\"\")","v":250}]
[null,null,null,{"$f":"IF(Fakturadetaljer[[#This Row],[DETALJER]]=\"\",\"\",VLOOKUP(C18,konsultationspris,2,FALSE))","v":""},{"$f":"IFERROR(Fakturadetaljer[[#This Row],[ENHEDSPRIS]]*Fakturadetaljer[[#This Row],[ANTAL]],\"\")","v":""}]
[null,null,null,{"$f":"IF(Fakturadetaljer[[#This Row],[DETALJER]]=\"\",\"\",VLOOKUP(C19,konsultationspris,2,FALSE))","v":""},{"$f":"IFERROR(Fakturadetaljer[[#This Row],[ENHEDSPRIS]]*Fakturadetaljer[[#This Row],[ANTAL]],\"\")","v":""}]
[null,null,null,{"$f":"IF(Fakturadetaljer[[#This Row],[DETALJER]]=\"\",\"\",VLOOKUP(C20,konsultationspris,2,FALSE))","v":""},{"$f":"IFERROR(Fakturadetaljer[[#This Row],[ENHEDSPRIS]]*Fakturadetaljer[[#This Row],[ANTAL]],\"\")","v":""}]
[null,null,null,{"$f":"IF(Fakturadetaljer[[#This Row],[DETALJER]]=\"\",\"\",VLOOKUP(C21,konsultationspris,2,FALSE))","v":""},{"$f":"IFERROR(Fakturadetaljer[[#This Row],[ENHEDSPRIS]]*Fakturadetaljer[[#This Row],[ANTAL]],\"\")","v":""}]
[null,null,null,{"$f":"IF(Fakturadetaljer[[#This Row],[DETALJER]]=\"\",\"\",VLOOKUP(C22,konsultationspris,2,FALSE))","v":""},{"$f":"IFERROR(Fakturadetaljer[[#This Row],[ENHEDSPRIS]]*Fakturadetaljer[[#This Row],[ANTAL]],\"\")","v":""}]
[null,null,null,{"$f":"IF(Fakturadetaljer[[#This Row],[DETALJER]]=\"\",\"\",VLOOKUP(C23,konsultationspris,2,FALSE))","v":""},{"$f":"IFERROR(Fakturadetaljer[[#This Row],[ENHEDSPRIS]]*Fakturadetaljer[[#This Row],[ANTAL]],\"\")","v":""}]
[null,null,null,{"$f":"IF(Fakturadetaljer[[#This Row],[DETALJER]]=\"\",\"\",VLOOKUP(C24,konsultationspris,2,FALSE))","v":""},{"$f":"IFERROR(Fakturadetaljer[[#This Row],[ENHEDSPRIS]]*Fakturadetaljer[[#This Row],[ANTAL]],\"\")","v":""}]
[null,null,null,{"$f":"IF(Fakturadetaljer[[#This Row],[DETALJER]]=\"\",\"\",VLOOKUP(C25,konsultationspris,2,FALSE))","v":""},{"$f":"IFERROR(Fakturadetaljer[[#This Row],[ENHEDSPRIS]]*Fakturadetaljer[[#This Row],[ANTAL]],\"\")","v":""}]
[null,null,null,{"$f":"IF(Fakturadetaljer[[#This Row],[DETALJER]]=\"\",\"\",VLOOKUP(C26,konsultationspris,2,FALSE))","v":""},{"$f":"IFERROR(Fakturadetaljer[[#This Row],[ENHEDSPRIS]]*Fakturadetaljer[[#This Row],[ANTAL]],\"\")","v":""}]
[null,null,null,{"$f":"IF(Fakturadetaljer[[#This Row],[DETALJER]]=\"\",\"\",VLOOKUP(C27,konsultationspris,2,FALSE))","v":""},{"$f":"IFERROR(Fakturadetaljer[[#This Row],[ENHEDSPRIS]]*Fakturadetaljer[[#This Row],[ANTAL]],\"\")","v":""}]
[null,null,null,{"$f":"IF(Fakturadetaljer[[#This Row],[DETALJER]]=\"\",\"\",VLOOKUP(C28,konsultationspris,2,FALSE))","v":""},{"$f":"IFERROR(Fakturadetaljer[[#This Row],[ENHEDSPRIS]]*Fakturadetaljer[[#This Row],[ANTAL]],\"\")","v":""}]
[null,null,null,{"$f":"IF(Fakturadetaljer[[#This Row],[DETALJER]]=\"\",\"\",VLOOKUP(C29,konsultationspris,2,FALSE))","v":""},{"$f":"IFERROR(Fakturadetaljer[[#This Row],[ENHEDSPRIS]]*Fakturadetaljer[[#This Row],[ANTAL]],\"\")","v":""}]
[null,null,null,"Rabat",{"$f":"SUM(Fakturadetaljer[LINJETOTAL])*(VLOOKUP(C10,rabatsats,2,FALSE))","v":105}]
[null,null,null,"Netto total",{"$f":"SUM(Fakturadetaljer[LINJETOTAL])-E30","v":595}]
[null,null,null,"Moms",{"$f":"E31*25%","v":148.75}]
[null,null,{"$f":"REPT(Firmaopsætning_Valutaforkortelse,LEN(Firmaopsætning_Valutaforkortelse)>0) & \" TOTAL INKL. MOMS\"","v":"KR TOTAL INKL. MOMS"},null,{"$f":"E31+E32","v":743.75}]
[]
[]
[null,"BETALINGSOPLYSNINGER",null,null,"ANDRE OPLYSNINGER"]
[null,{"$f":"\"Navn på modtager: \" & Firmaopsætning_Navnpåbegunstigede","v":"Navn på modtager: "},null,null,{"$f":"IFERROR(Firmaopsætning_Navn,\"\")","v":0}]
[null,{"$f":"\"Bankens navn: \" & Firmaopsætning_Banknavn","v":"Bankens navn: "},null,null,{"$f":"IFERROR(\"Telefon: \" & Firmaopsætning_Telefon,\"\")","v":"Telefon: "}]
[null,{"$f":"\"Bankadresse: \" & Firmaopsætning_BankAdresse","v":"Bankadresse: "},null,null,{"$f":"IFERROR(Firmaopsætning_Webadresse,\"\")","v":0}]
[null,{"$f":"\"Kontonummer: \" & Firmaopsætning_Bankkonto","v":"Kontonummer: 1234567"},null,null,{"$f":"IFERROR(Firmaopsætning_Mailadresse,\"\")","v":0}]
[null,{"$f":"Firmaopsætning!B19 & Firmaopsætning!C19","v":"Mobilpay : 123456"}]
[null,{"$f":"\"Betalingsreference: \" & Fakturanummervisning","v":"Betalingsreference: "},null,null,{"$f":"IFERROR(IF(LEN(Client_PO),\"Contract/PO: \" & Client_PO,\"\"),\"\")","v":""}]
[]
[null,{"$f":"UPPER(\"Betalingen skal foretages som en bankoverførsel til \" & Firmaopsætning_Checkbetaling & \".\")","v":"BETALINGEN SKAL FORETAGES SOM EN BANKOVERFØRSEL TIL ."}]

{"sheet":"Firmaopsætning","index":1,"n_rows":41,"n_cols":3,"rows_kept":41,"cut":false,"hidden":false,"merged":[[20,1,20,2]]}
[null,"VIRKSOMHEDSSAMMENSÆTNING"]
[null,"VIRKSOMHEDENS OPLYSNINGER","VÆRDI"]
[null,"Dit navn"]
[null,"Firmanavn"]
[null,"Adresselinje 1"]
[null,"Adresselinje 2"]
[null,"Adresselinje 3"]
[null,"Adresselinje 4"]
[null,"Adresselinje 5"]
[null,"Telefon"]
[null,"Fax"]
[null,"Websted"]
[null,"Mail"]
[null,"Valutaforkortelse","KR"]
[null,"Navn på den begunstigede til bankoverførsel"]
[null,"Bankens navn"]
[null,"Bankens adresse"]
[null,"Kontonummer",1234567]
[null,"Mobilpay : ",123456]
[null,"Udstedelse af check til"]
[]
[]
[]
[null,"Personlig konsultation ude",300]
[null,"Personlig konsultation ",250]
[null,"Telefonisk konsultation",150]
[]
[null,1]
[null,2,0.05]
[null,3,0.1]
[null,4,0.15]
[null,5,0.2]
[null,6,0.25]
[null,7,0.3]
[null,8,0.35]
[null,9,0.4]
[null,10,0.45]
[null,11,0.5]
[]
[]
[null,{"$f":"\"Firmaopsætning!B19\"&\"\"","v":"Firmaopsætning!B19"}]